bitfinex/quotes_ETHUSD_20240711
["timestamp","ask_amount","ask_price","bid_price","bid_amount"]
[1720705268432,7.12383768,3173.5,3171.9,0.79204498]
[1720705268433,3.97273768,3173.5,3171.9,0.79204498]
[1720705268638,1.09153768,3173.5,3172.0,3.21560722]
[1720705268945,1.09153768,3173.5,3171.9,0.729]
[1720705268946,1.09153768,3173.5,3172.1,2.49633368]
[1720705269266,3.15125,3173.4,3172.1,2.4333]
[1720705269450,1.09153768,3173.5,3172.2,3.77392163]
[1720705269636,1.09153768,3173.5,3172.2,0.62162163]
[1720705269836,1.09153768,3173.5,3172.7,3.15188]
[1720705270034,1.09153768,3173.5,3172.9,2.4686]
[1720705270292,1.09153768,3173.5,3173.4,3.15119]
[1720705270433,1.09153768,3173.5,3173.4,6.04369]
[1720705270633,1.09153768,3173.5,3173.4,2.3425]
[1720705271389,1.09153768,3173.5,3173.4,5.72794]
[1720705271688,1.09153768,3173.5,3173.4,2.57675]
[1720705272037,1.09153768,3173.5,3173.4,2.3425]
[1720705272265,1.09153768,3173.5,3173.4,2.3778554]
[1720705272482,1.09153768,3173.5,3173.4,0.0353554]
[1720705272788,1.09153768,3173.5,3172.8,7.29]
[1720705273373,0.79153768,3173.5,3172.9,0.03282074]
[1720705273743,0.49153768,3173.5,3172.9,0.76510281]
[1720705273944,0.49153768,3173.5,3173.0,0.06302326]
[1720705274253,0.19153768,3173.5,3173.1,0.03292478]
[1720705274590,0.19153768,3173.5,3172.9,0.73228207]
[1720705274784,0.19153768,3173.5,3173.3,2.4355]
[1720705274957,0.19153768,3173.5,3173.4,0.24684248]
[1720705275286,0.19153768,3173.5,3173.4,0.03291209]
[1720705275983,0.19153768,3173.5,3172.9,0.73228207]
[1720705276182,0.19153768,3173.5,3173.4,0.0328588]
[1720705276554,0.19153768,3173.5,3172.9,0.73228207]
[1720705276792,0.19153768,3173.5,3173.4,0.03271924]
[1720705276972,0.19153768,3173.5,3172.9,0.73228207]
[1720705277145,0.19153768,3173.5,3173.4,0.03270147]
[1720705277350,0.19153768,3173.5,3173.2,3.15139]
[1720705277551,0.19153768,3173.5,3173.4,0.03270147]
[1720705277854,0.19153768,3173.5,3173.4,0.03269894]
[1720705278046,0.19153768,3173.5,3173.0,1.35025921]
[1720705278391,0.19153768,3173.5,3173.4,6.33507894]
[1720705278590,0.64230814,3175.0,3174.2,3.15031]
[1720705278745,0.96346222,3175.2,3173.5,2.4567]
[1720705278746,0.64230814,3175.3,3174.0,7.29]
[1720705278952,0.64230814,3175.3,3174.3,0.03268118]
[1720705278953,0.64230814,3175.1,3174.3,0.03268118]
[1720705279170,0.64230814,3175.0,3174.1,0.03259493]
[1720705279495,0.89951981,3174.9,3174.2,0.03259493]
[1720705279646,0.64230814,3175.0,3174.2,0.06299881]
[1720705279851,0.64230814,3175.4,3174.4,3.15012]
[1720705280046,0.64230814,3175.6,3174.5,0.06298866]
[1720705280278,0.64230814,3175.6,3174.6,0.32131087]
[1720705280601,0.64230814,3175.7,3174.7,3.21287306]
[1720705280806,0.64230814,3175.6,3174.8,0.06298308]
[1720705281114,0.89964596,3175.6,3174.7,0.06298308]
[1720705281264,0.64230814,3175.6,3174.9,0.0325163]
[1720705281462,0.64230814,3175.7,3174.8,0.06298308]
[1720705281796,0.64230814,3175.7,3175.1,2.4084]
[1720705281999,0.64230814,3176.0,3175.1,2.47137945]
[1720705282205,0.96346222,3176.2,3175.2,0.90956225]
[1720705282206,0.64230814,3176.1,3175.2,0.90956225]
[1720705282507,0.64230814,3176.2,3175.2,0.90956225]
[1720705282702,0.64230814,3176.2,3175.3,3.14921]
[1720705282904,0.64230814,3176.5,3175.4,3.14914]
[1720705283058,0.64230814,3176.5,3175.3,7.29]
[1720705283263,0.80288518,3176.4,3175.5,0.03233882]
[1720705283496,0.16057704,3176.4,3175.5,0.06297111]
[1720705283696,0.64230814,3176.5,3175.5,0.06297111]
[1720705283697,0.64230814,3176.7,3175.6,3.18133882]
[1720705283910,0.64230814,3176.8,3175.7,2.39286749]
[1720705284121,0.64230814,3177.2,3176.1,3.14851]
[1720705284258,1.28461629,3177.5,3176.4,3.14819]
[1720705284259,0.64230814,3177.4,3176.4,3.14819]
[1720705284469,0.64230814,3177.8,3177.0,2.566]
[1720705284660,0.64230814,3178.6,3177.1,0.2566]
[1720705284865,0.64230814,3178.6,3177.1,3.49912452]
[1720705285091,0.89879747,3178.5,3177.1,3.49912452]
[1720705285287,0.64230814,3178.5,3177.2,5.55852]
[1720705285505,3.14584,3178.8,3177.2,2.44288912]
[1720705285740,3.52475481,3178.7,3177.3,0.06293493]
[1720705286098,3.52475481,3178.7,3177.4,0.03157907]
[1720705286896,0.37881481,3178.7,3177.4,0.03157907]
[1720705287136,3.14634,3178.3,3177.4,0.03157907]
[1720705287434,3.14644,3178.2,3176.8,7.29]
[1720705287748,3.1466,3178.1,3176.8,7.29]
[1720705287901,3.14675,3177.9,3176.9,0.0304313]
[1720705288110,0.314675,3177.8,3176.9,0.0304313]
[1720705288913,3.14756,3177.1,3176.9,0.0304313]
[1720705289176,3.14735,3177.3,3175.8,7.29]
[1720705289177,3.14794,3176.7,3175.8,7.29]
[1720705289456,3.14819,3176.5,3175.8,7.29]
[1720705289609,3.14774,3176.9,3175.9,0.02927802]
[1720705289806,3.14802,3176.6,3175.9,0.02927802]
[1720705290011,0.314774,3176.8,3175.8,7.29]
[1720705290012,0.314774,3176.8,3176.0,0.02927802]
[1720705290254,0.64230814,3177.4,3175.8,7.29]
[1720705290423,0.96346222,3177.5,3175.8,7.29]
[1720705290424,3.14808,3176.6,3175.8,7.29]
[1720705290621,3.14769,3177.0,3175.9,2.2721]
[1720705290809,3.14745,3177.2,3175.9,2.2721]
[1720705290810,3.14745,3177.2,3175.9,2.36434671]
[1720705291011,3.14724,3177.4,3175.9,2.36434671]
[1720705291206,0.314724,3177.3,3176.0,3.1486]
[1720705291462,0.314675,3177.8,3176.1,0.06295463]
[1720705291463,0.629875,3177.8,3176.1,0.06295463]
[1720705291664,3.14713,3177.5,3176.1,0.02927802]
[1720705291956,3.14765,3177.0,3176.1,0.02927802]
[1720705292254,3.14789,3176.8,3176.1,0.02927802]
[1720705292425,3.14765,3177.0,3175.8,7.29]
[1720705292632,3.14765,3177.0,3176.2,0.02968051]
[1720705292830,0.314765,3176.9,3175.9,0.06296852]
[1720705293038,3.14761,3177.1,3175.9,0.06296852]
[1720705293352,3.14761,3177.1,3176.0,0.02970837]
[1720705293554,3.14738,3177.3,3176.0,0.09266993]
[1720705293753,1.50750814,3177.8,3176.0,0.09266993]
[1720705293754,3.14754,3177.1,3176.0,0.09266993]
[1720705294052,3.14768,3177.0,3176.0,0.02970837]
[1720705294258,3.14789,3176.8,3176.0,0.02970837]
[1720705294557,3.14789,3176.8,3175.1,3.1495]
[1720705294558,3.14841,3176.2,3175.2,7.29]
[1720705294761,3.14823,3176.4,3175.2,7.29]
[1720705295332,3.14823,3176.4,3175.3,0.06298294]
[1720705295543,0.314823,3176.3,3175.3,0.06298294]
[1720705296150,3.14792,3176.7,3175.3,0.06298294]
[1720705296456,3.14792,3176.7,3175.3,3.21228294]
[1720705296669,3.14803,3176.6,3175.3,0.06298294]
[1720705296861,3.14792,3176.7,3175.4,0.02794155]
[1720705297161,0.314768,3176.9,3175.4,0.02794155]
[1720705297330,3.4941268,3176.8,3175.4,0.766034]
[1720705297663,3.4941268,3176.8,3175.5,0.06296985]
[1720705297817,0.3462468,3176.8,3175.5,0.06296985]
[1720705298013,0.3462468,3176.8,3175.6,2.4043]
[1720705298217,3.4941268,3176.8,3175.6,2.4321402]
[1720705298515,3.14822,3176.4,3175.6,2.4321402]
[1720705299267,0.3462468,3176.8,3175.6,2.4321402]
[1720705299487,3.14869,3176.0,3175.6,0.0278402]
[1720705299629,3.14869,3176.0,3175.2,7.29]
[1720705299981,3.463659,3175.9,3175.3,0.0281922]
[1720705300177,3.14881,3175.8,3175.3,0.0281922]
[1720705300761,3.14881,3175.8,3175.2,7.29]
[1720705300928,6.29771,3175.8,3175.4,0.02825554]
[1720705301146,3.14881,3175.8,3175.2,7.29]
[1720705301334,0.3463679,3175.7,3175.5,0.02835438]
[1720705301670,3.14912,3175.5,3175.2,7.29]
[1720705302177,3.14923,3175.4,3175.2,7.29]
[1720705302338,3.14943,3175.2,3174.5,9.6407]
[1720705302537,3.1492,3175.4,3174.5,9.6407]
[1720705302742,3.46423,3175.3,3174.5,9.6407]
[1720705302969,3.14941,3175.2,3174.5,9.6407]
[1720705303131,0.31492,3175.3,3174.5,9.6407]
[1720705304570,3.14941,3175.2,3174.5,9.6407]
[1720705304781,3.14952,3175.1,3174.5,9.6407]
[1720705304989,0.629893,3175.0,3174.5,7.29]
[1720705305140,3.14982,3174.8,3174.5,7.29]
[1720705305339,3.14982,3174.8,3174.0,2.4181]
[1720705305574,3.14999,3174.7,3174.0,2.4181]
[1720705306079,3.15001,3174.6,3174.0,2.4181]
[1720705306682,3.1501,3174.5,3173.8,7.29]
[1720705306895,0.31501,3174.4,3173.8,7.29]
[1720705307889,3.14993,3174.7,3173.8,7.29]
[1720705308242,3.15016,3174.5,3173.8,7.29]
[1720705308753,3.14993,3174.7,3173.8,7.29]
[1720705309087,3.15001,3174.6,3173.8,7.29]
[1720705309576,3.14947,3175.2,3173.8,7.29]
[1720705309577,3.1502,3174.4,3173.8,7.29]
[1720705309881,3.15033,3174.3,3173.8,7.29]
[1720705310270,6.30072,3174.3,3173.8,7.29]
[1720705310441,3.15033,3174.3,3173.8,7.29]
[1720705310777,3.465433,3174.2,3173.8,7.29]
[1720705311139,3.465433,3174.2,3173.4,12.12]
[1720705311140,0.315033,3174.2,3173.4,7.29]
[1720705311400,3.15067,3174.0,3173.4,7.29]
[1720705311850,3.15072,3173.9,3173.4,7.29]
[1720705312056,3.780959,3173.8,3173.4,7.29]
[1720705312266,3.15092,3173.7,3172.9,9.5954]
[1720705312458,3.15099,3173.6,3173.5,0.02776588]
[1720705312792,3.15099,3173.6,3172.9,9.5954]
[1720705313079,3.15111,3173.5,3172.9,9.5954]
[1720705313264,3.466371,3173.4,3172.9,9.5954]
[1720705314066,3.1513,3173.3,3172.9,7.29]
[1720705314264,3.1518,3172.8,3172.4,2.3356]
[1720705314492,6.30332,3173.0,3172.4,2.3356]
[1720705314691,0.3152,3173.7,3172.4,2.3356]
[1720705314692,5.72101,3173.6,3172.4,2.3356]
[1720705315159,3.15144,3173.2,3172.4,2.3356]
[1720705315362,3.1517,3172.9,3172.4,2.3356]
[1720705315749,0.630338,3172.9,3172.0,7.29]
[1720705315858,5.72238,3172.3,3172.0,7.29]
[1720705316056,3.15184,3172.8,3172.0,7.29]
[1720705316261,3.15241,3172.2,3172.0,7.29]
[1720705316452,3.15215,3172.5,3171.4,19.41081852]
[1720705316652,2.57,3172.8,3171.4,19.41081852]
[1720705316653,3.15235,3172.3,3171.4,19.41081852]
[1720705316859,3.1526,3172.0,3171.4,19.41081852]
[1720705317061,3.467545,3172.3,3171.4,19.41081852]
[1720705317372,8.87616,3171.5,3171.4,0.00081852]
[1720705317695,8.87616,3171.5,3170.2,0.1161327]
[1720705317696,3.15338,3171.2,3170.2,0.1161327]
[1720705317907,3.0598828,3172.3,3170.3,0.06307967]
[1720705318086,0.4898828,3172.3,3171.4,0.02813549]
[1720705318398,3.15287,3171.8,3171.1,7.29]
[1720705318694,3.15204,3172.6,3171.3,2.2769]
[1720705318892,3.15204,3172.6,3171.4,0.06304921]
[1720705319055,3.15218,3172.4,3171.3,2.2769]
[1720705319259,3.15227,3172.4,3171.4,0.02826506]
[1720705319490,3.15227,3172.4,3171.3,2.2769]
[1720705320006,3.1525,3172.1,3171.4,0.02824474]
[1720705320204,2.57,3172.7,3171.4,0.25875921]
[1720705320502,3.15121,3173.4,3171.6,3.15294]
[1720705320700,3.15192,3172.7,3171.5,0.02818122]
[1720705320856,3.15158,3173.1,3171.6,0.06303873]
[1720705321053,3.15158,3173.1,3171.4,0.23051447]
[1720705321054,3.15207,3172.6,3171.7,0.02817614]
[1720705321295,3.15229,3172.3,3171.5,0.06305444]
[1720705321467,3.15229,3172.3,3171.8,0.02814565]
[1720705321669,2.8852,3173.1,3171.3,2.2769]
[1720705321983,3.15299,3171.6,3171.4,0.02814311]
[1720705322190,3.15259,3172.0,3170.7,9.6164]
[1720705322356,2.57,3172.6,3171.5,0.02815836]
[1720705322557,0.3152,3172.8,3170.9,0.06305858]
[1720705322774,3.1525,3172.1,3171.6,0.02815836]
[1720705323095,3.15201,3172.6,3171.6,0.02815836]
[1720705323319,3.15219,3172.4,3171.7,0.02815582]
[1720705323498,3.15179,3172.8,3171.7,0.02815582]
[1720705323803,3.1513,3173.3,3171.4,2.2597]
[1720705323963,3.15139,3173.2,3171.5,0.06304168]
[1720705324162,3.15151,3173.1,3171.5,0.09129658]
[1720705324563,0.64441622,3173.5,3171.5,3.24435658]
[1720705324788,3.1514,3173.2,3171.6,0.55]
[1720705324991,0.31514,3173.2,3171.6,0.02813041]
[1720705325160,3.15219,3172.4,3171.6,0.02813041]
[1720705325481,3.15219,3172.4,3171.4,2.2597]
[1720705326066,3.15199,3172.6,3171.5,0.02802882]
[1720705326067,3.15269,3171.9,3171.5,0.02802882]
[1720705326300,3.15259,3172.0,3171.5,0.02802882]
[1720705326467,2.57,3172.9,3171.5,0.02802882]
[1720705326468,3.15235,3172.3,3171.5,0.02802882]
[1720705327101,3.15244,3172.2,3171.5,0.02802882]
[1720705327399,3.15219,3172.4,3171.5,0.02802882]
[1720705327601,2.8852,3172.9,3171.5,0.02802882]
[1720705327602,3.15189,3172.7,3171.5,0.09108447]
[1720705327773,3.1517,3172.9,3171.5,0.09108447]
[1720705327774,3.1517,3172.9,3171.6,0.23507845]
[1720705328100,3.15131,3173.3,3171.7,0.06304486]
[1720705328409,3.15156,3173.1,3171.8,2.51329739]
[1720705328609,3.1516,3173.0,3171.9,0.06303773]
[1720705328903,0.630139,3173.8,3171.8,2.51329739]
[1720705328904,2.57,3173.3,3171.8,2.51329739]
[1720705329104,3.15232,3172.3,3171.8,2.4852]
[1720705329276,3.15164,3173.0,3171.8,2.4852]
[1720705329699,0.28852,3173.2,3171.5,7.29]
[1720705329700,3.15248,3172.1,3171.5,7.29]
[1720705329899,3.1526,3172.0,3171.3,2.3667]
[1720705330100,3.15231,3172.3,3171.3,2.42975824]
[1720705330302,3.15231,3172.3,3171.4,0.97197582]
[1720705330303,3.1525,3172.1,3171.4,0.97197582]
[1720705330488,3.15298,3171.7,3171.3,2.3667]
[1720705330689,3.15298,3171.6,3171.3,2.3667]
[1720705331293,3.15298,3171.6,3171.2,7.29]
[1720705331294,3.15309,3171.5,3171.2,7.29]
[1720705331541,3.15318,3171.4,3170.7,2.3835]
[1720705331839,3.15334,3171.3,3170.7,2.3835]
[1720705332005,3.15351,3171.1,3170.7,2.3835]
[1720705332208,3.63558391,3172.8,3170.8,0.06307536]
[1720705332423,3.63558391,3172.8,3170.8,0.06306559]
[1720705332424,3.15252,3172.1,3170.8,0.06306559]
[1720705332732,2.57,3172.5,3170.7,3.4139142]
[1720705332733,3.15289,3171.7,3170.7,3.4139142]
[1720705332914,3.15299,3171.6,3170.7,3.35085]
[1720705333103,3.15299,3171.6,3170.8,1.064085]
[1720705333323,3.15319,3171.4,3170.8,1.064085]
[1720705333737,3.15338,3171.2,3170.7,2.3835]
[1720705334404,3.15337,3171.3,3170.7,2.3835]
[1720705334926,5.72254,3172.1,3170.2,7.4061327]
[1720705334927,3.15348,3171.1,3170.2,7.4061327]
[1720705335122,3.15355,3171.1,3170.2,7.4061327]
[1720705335438,3.15374,3170.9,3170.3,0.74061327]
[1720705335639,3.15374,3170.9,3170.2,7.4061327]
[1720705335932,3.15377,3170.8,3170.2,7.4061327]
[1720705336825,2.8852,3171.7,3170.3,0.06308393]
[1720705337131,4.11658972,3172.6,3170.5,3.15407]
[1720705337132,3.15251,3172.1,3170.5,3.15407]
[1720705337333,2.57,3172.7,3170.4,2.3641]
[1720705337334,3.15227,3172.4,3170.7,3.15387]
[1720705337638,3.15242,3172.2,3170.9,2.3742]
[1720705337845,3.15299,3171.6,3170.9,2.3742]
[1720705338134,3.15277,3171.9,3170.9,2.3742]
[1720705338298,3.1527,3171.9,3171.0,0.30048082]
[1720705338495,3.15301,3171.6,3170.9,2.3742]
[1720705338894,0.257,3172.2,3171.0,0.06306794]
[1720705338895,3.15249,3172.1,3171.0,0.06306794]
[1720705339100,3.15269,3171.9,3170.9,2.3742]
[1720705339538,3.15269,3171.9,3171.0,0.06306081]
[1720705339837,0.257,3172.2,3171.0,0.06306081]
[1720705340002,3.15212,3172.5,3171.1,0.24372608]
[1720705340205,3.1522,3172.4,3171.2,0.06305683]
[1720705340400,2.85852,3173.2,3171.3,2.4935]
[1720705340732,3.1523,3172.3,3171.3,2.4935]
[1720705340893,3.15216,3172.5,3171.3,2.4935]
[1720705340894,3.15245,3172.2,3171.3,2.4935]
[1720705341095,3.15249,3172.1,3171.4,0.24935]
[1720705341301,3.15259,3172.0,3171.3,2.4935]
[1720705341532,3.15271,3171.9,3171.3,2.4935]
[1720705341837,3.15285,3171.8,3171.3,2.4935]
[1720705342054,3.15285,3171.8,3171.1,7.29]
[1720705342055,3.15298,3171.6,3171.1,7.29]
[1720705342331,3.15308,3171.5,3170.8,2.3667]
[1720705342535,3.15308,3171.5,3170.8,3.33237]
[1720705343043,3.15308,3171.5,3170.8,2.3667]
[1720705343399,3.15318,3171.4,3170.8,2.3667]
[1720705343635,3.15333,3171.3,3170.8,2.3667]
[1720705343851,5.72223,3172.4,3170.7,7.29]
[1720705343852,3.15281,3171.8,3170.7,7.29]
[1720705344002,1.09223962,3171.7,3170.7,7.29]
[1720705344341,0.55,3172.3,3170.7,8.019]
[1720705344342,1.09223962,3171.6,3170.7,8.019]
[1720705344495,3.15288,3171.7,3170.7,8.019]
[1720705344720,3.1526,3172.0,3170.8,2.3796]
[1720705344968,1.0920147,3171.9,3170.8,2.3796]
[1720705345268,3.15255,3172.1,3170.9,0.06306125]
[1720705345484,3.15357,3171.0,3170.1,2.3397]
[1720705345759,3.15357,3171.1,3170.1,2.3397]
[1720705345971,3.15338,3171.2,3170.1,2.3397]
[1720705346258,3.15348,3171.1,3170.1,2.3397]
[1720705346472,3.15338,3171.2,3170.1,2.3397]
[1720705346627,3.15323,3171.4,3170.3,0.24558327]
[1720705346824,3.15309,3171.5,3170.3,0.24558327]
[1720705347067,1.09217059,3171.4,3170.3,0.30865302]
[1720705347225,3.15261,3172.0,3170.4,2.2797]
[1720705347425,1.28944647,3172.5,3170.3,0.30865302]
[1720705347426,3.15235,3172.3,3170.6,2.2797]
[1720705347619,1.0919779,3172.2,3170.8,3.15377]
[1720705347834,3.15251,3172.1,3170.9,2.2797]
[1720705348041,1.09193667,3172.1,3171.2,3.15333]
[1720705348243,3.15159,3173.0,3171.4,2.2608]
[1720705348476,3.15148,3173.2,3171.9,2.2608]
[1720705348763,1.09155184,3173.1,3172.0,0.541349]
[1720705348928,3.15112,3173.5,3172.1,0.06303491]
[1720705349124,1.09153464,3173.4,3172.0,0.541349]
[1720705349361,3.15112,3173.5,3172.1,0.06304243]
[1720705349559,3.15112,3173.5,3171.9,9.5508]
[1720705349560,3.15171,3172.9,3171.9,9.5508]
[1720705349769,3.1523,3172.3,3171.9,9.5508]
[1720705350074,3.15216,3172.5,3171.5,7.29]
[1720705350226,1.09184639,3172.4,3171.5,7.29]
[1720705350426,3.15298,3171.6,3171.5,7.29]
[1720705350632,3.15318,3171.4,3170.3,7.53558327]
[1720705350871,3.1533,3171.3,3170.3,7.53558327]
[1720705351251,3.15355,3171.1,3170.3,7.29]
[1720705351768,0.64913711,3171.2,3170.3,7.29]
[1720705351971,1.09230547,3171.1,3170.3,7.29]
[1720705352187,3.15348,3171.1,3170.3,7.29]
[1720705352342,0.64913711,3170.9,3170.3,7.29]
[1720705352541,3.80310711,3170.7,3170.3,7.29]
[1720705352748,3.80310711,3170.7,3170.2,2.3769327]
[1720705353060,3.15408,3170.5,3170.2,0.1161327]
[1720705353250,3.15398,3170.6,3170.2,0.1161327]
[1720705353451,3.15409,3170.5,3170.2,0.1161327]
[1720705354480,3.15427,3170.3,3170.2,0.1161327]
[1720705354686,6.30854,3170.3,3170.2,0.1161327]
[1720705354853,7.23049268,3170.3,3170.2,0.1161327]
[1720705355044,7.55506124,3170.3,3170.2,0.1161327]
[1720705355247,11.4287221,3170.3,3170.2,0.02620327]
[1720705355592,14.55718961,3170.3,3170.2,0.02620327]
[1720705355742,12.93337424,3170.3,3170.2,0.02620327]
[1720705356067,12.93337424,3170.3,3170.2,0.00693134]
[1720705356246,11.40320455,3170.3,3170.2,0.00693134]
[1720705356841,4.40228313,3170.3,3170.2,0.00693134]
[1720705357042,10.84194035,3170.3,3170.2,0.00693134]
[1720705357340,8.26864174,3170.3,3170.2,0.00693134]
[1720705357591,8.26858322,3170.3,3170.2,0.00693134]
[1720705357743,17.38948711,3170.3,3170.2,0.00693134]
[1720705357944,17.79083534,3170.3,3170.2,0.00693134]
[1720705358179,18.10603534,3170.3,3170.2,0.00693134]
[1720705358480,21.26030534,3170.3,3170.2,0.00693134]
[1720705358688,18.10603534,3170.3,3170.2,0.00693134]
[1720705359590,16.65949932,3170.3,3170.2,0.00693134]
[1720705359804,3.15547,3169.1,3169.0,7.29]
[1720705360007,3.15567,3168.9,3168.6,2.2627]
[1720705360300,3.15567,3168.9,3168.2,7.29]
[1720705360929,3.15588,3168.7,3168.2,7.29]
[1720705361515,3.15598,3168.6,3168.2,7.29]
[1720705362498,3.15577,3168.8,3168.2,7.29]
[1720705362665,3.15547,3169.1,3168.4,0.72989762]
[1720705362996,3.15547,3169.1,3168.4,0.00081602]
[1720705363168,3.15564,3169.0,3168.4,0.00081602]
[1720705363377,3.15568,3168.9,3168.4,0.00081602]
[1720705363605,3.15577,3168.8,3168.4,0.00081602]
[1720705363802,3.15587,3168.7,3168.4,0.00081602]
[1720705364096,2.85587,3168.7,3168.4,0.00081602]
[1720705364680,2.55587,3168.7,3168.4,0.00081602]
[1720705365066,6.31212,3168.5,3168.4,0.00081602]
[1720705365267,3.15633,3168.3,3167.1,7.29]
[1720705365506,3.15633,3168.3,3167.0,2.3969327]
[1720705365507,3.15739,3167.2,3167.0,0.1161327]
[1720705365716,3.15441734,3167.1,3167.0,0.1161327]
[1720705366004,6.31187734,3167.1,3167.0,0.07654777]
[1720705366219,7.20006507,3167.1,3167.0,0.07654777]
[1720705366425,3.15441734,3167.1,3167.0,0.07654777]
[1720705366639,1.61897957,3167.7,3167.0,0.07654777]
[1720705366640,2.57,3168.0,3167.0,0.07654777]
[1720705366914,3.15717,3167.4,3167.0,0.07654777]
[1720705367296,3.15717,3167.4,3164.5,3.16]
[1720705367297,2.57,3167.1,3164.8,2.3816]
[1720705367505,2.57,3166.6,3164.9,0.06317966]
[1720705367706,3.15843,3166.2,3165.0,0.24447797]
[1720705368123,3.15852,3166.1,3165.0,0.24447797]
[1720705368327,2.57,3166.6,3165.0,0.24447797]
[1720705368528,3.15827,3166.3,3165.0,0.24447797]
[1720705368828,3.1575,3167.1,3165.4,3.15906]
[1720705368829,3.15747,3167.1,3165.4,3.15906]
[1720705368984,3.15768,3166.9,3165.5,0.315906]
[1720705369185,3.15821,3166.4,3165.5,0.315906]
[1720705369380,3.15821,3166.4,3165.0,0.24447797]
[1720705369590,2.57,3166.9,3165.4,3.15915]
[1720705369803,2.57,3167.4,3165.6,2.4038]
[1720705370012,3.15726,3167.3,3165.8,3.15874]
[1720705370213,5.72725,3167.4,3165.6,2.46695897]
[1720705370475,3.15746,3167.1,3165.7,0.5625939]
[1720705370939,3.15729,3167.3,3165.7,0.5625939]
[1720705370940,3.15757,3167.0,3165.7,0.5625939]
[1720705371117,3.15739,3167.2,3165.8,0.06316195]
[1720705371923,3.15739,3167.2,3165.7,3.7214439]
[1720705372127,3.15754,3167.1,3165.7,0.5625939]
[1720705372430,3.142725,3167.4,3165.6,2.4038]
[1720705372431,2.57,3166.9,3165.6,2.4038]
[1720705372635,3.15833,3166.3,3165.6,2.4038]
[1720705372930,3.15829,3166.3,3165.1,7.29]
[1720705373124,3.15856,3166.0,3165.2,0.9994878]
[1720705373498,3.15888,3165.7,3165.2,0.9994878]
[1720705373702,3.15865,3166.0,3165.1,7.29]
[1720705374185,2.57,3166.4,3165.1,7.29]
[1720705374384,3.15837,3166.2,3165.1,7.29]
[1720705374587,3.15846,3166.1,3165.1,7.29]
[1720705375228,5.72819,3166.4,3165.1,7.29]
[1720705375403,3.15843,3166.2,3165.2,0.9994878]
[1720705375608,3.15848,3166.1,3165.1,7.29]
[1720705375823,6.300999,3166.4,3165.1,7.29]
[1720705376131,3.15798,3166.6,3165.2,0.06317844]
[1720705376305,3.15779,3166.8,3165.2,3.22252844]
[1720705376515,3.15779,3166.8,3165.0,2.70487797]
[1720705376833,3.15759,3167.0,3165.3,3.15923]
[1720705377031,3.15753,3167.1,3165.4,3.22231959]
[1720705377203,3.15766,3166.9,3165.5,2.78173196]
[1720705377403,3.15786,3166.7,3165.5,2.78173196]
[1720705377797,3.58131279,3167.0,3165.5,2.78173196]
[1720705377798,3.15773,3166.9,3165.5,2.84490021]
[1720705377998,0.42372279,3167.0,3165.5,2.84490021]
[1720705377999,0.42372279,3167.0,3165.6,3.15895]
[1720705378197,2.57,3167.2,3165.7,3.22194223]
[1720705378442,3.15741,3167.2,3165.7,3.15878]
[1720705378736,5.567,3167.9,3166.2,2.3946]
[1720705378737,3.1567,3167.9,3166.2,2.3946]
[1720705378947,3.15676,3167.8,3166.3,0.0631535]
[1720705379312,2.57,3168.0,3166.3,0.0631535]
[1720705379313,5.72657,3168.0,3166.3,3.15818]
[1720705379513,0.572657,3167.9,3166.6,3.15792]
[1720705379707,0.572657,3167.9,3166.8,2.282]
[1720705379920,3.05766105,3168.4,3166.8,5.43975]
[1720705379921,3.15629,3168.3,3166.8,5.43975]
[1720705380143,2.57,3168.4,3166.9,3.15765]
[1720705380703,3.727055,3168.7,3167.1,3.15742]
[1720705380962,0.571155,3168.7,3167.2,3.15729]
[1720705381251,0.3167,3169.2,3167.3,2.282]
[1720705381401,0.00081976,3168.7,3167.3,2.282]
[1720705381804,3.15627,3168.3,3167.3,2.282]
[1720705382046,3.15627,3168.3,3167.3,2.5102]
[1720705382221,0.00081976,3168.7,3167.3,2.5102]
[1720705382404,2.57,3168.5,3166.7,2.2728]
[1720705382636,3.15669,3167.9,3166.7,2.2728]
[1720705382833,3.15661,3168.0,3166.7,2.2728]
[1720705383043,3.15734,3167.3,3166.0,2.4467]
[1720705383206,2.57,3167.5,3166.0,2.4467]
[1720705383414,3.15782,3166.8,3166.0,2.4467]
[1720705384159,3.15814,3166.5,3165.4,2.4467]
[1720705384306,3.15832,3166.3,3165.4,2.4467]
[1720705385117,3.15814,3166.5,3165.4,2.4467]
[1720705385455,3.15827,3166.3,3165.4,2.4467]
[1720705385637,3.15863,3166.0,3164.9,2.4909]
[1720705386180,3.474187,3166.2,3164.9,2.4909]
[1720705386381,0.315827,3166.2,3164.9,2.4909]
[1720705386744,3.15902,3165.6,3164.9,2.4909]
[1720705387379,3.15798,3166.6,3164.9,2.4909]
[1720705387380,3.15818,3166.4,3164.9,2.4909]
[1720705387596,3.15826,3166.3,3164.9,5.71363979]
[1720705387804,3.15746,3167.1,3165.3,3.15918]
[1720705388091,3.15769,3166.9,3165.5,3.15903]
[1720705388243,0.22816197,3167.1,3165.6,3.48116026]
[1720705388445,0.00081972,3167.2,3165.7,2.32536683]
[1720705388651,0.00081972,3167.2,3166.3,3.15822]
[1720705388988,0.00081972,3167.2,3166.7,3.15785]
[1720705389140,0.00081972,3167.2,3166.8,3.2208944]
[1720705389339,0.00081972,3167.2,3166.9,3.15764]
[1720705389546,0.00081972,3167.2,3167.0,3.473234]
[1720705389843,0.00081972,3167.2,3167.1,3.15746]
[1720705390044,3.15611,3168.5,3167.1,3.15746]
[1720705390045,2.85692972,3168.5,3167.1,3.15746]
[1720705390344,3.15670976,3168.7,3167.1,3.15746]
[1720705390652,3.15639,3168.2,3167.0,0.315764]
[1720705390837,3.472129,3168.1,3166.5,2.3195]
[1720705391059,3.15674,3167.9,3166.5,2.3195]
[1720705391265,3.15713,3167.5,3166.5,2.3195]
[1720705391497,3.472099,3168.1,3165.7,12.12]